Cogmind - Beta 13 @@@ ROGUE MODE // 2024.05.30 @ 15:25:58 // Winter2022/Polymind Player: Phosphorus Result: Destroyed by H-77 Assassin with Coil Gun Performance ------------- Evolutions (6) 3000 Regions Visited (18) 3600 Robots Destroyed (62) 310 Value Destroyed (2267) 2267 Prototype IDs (220) 4400 Alien Tech Used (0) 0 Bonus (11334) 11334 TOTAL SCORE: 24161 Bonus ------- Polymind Skill 8930 Pacifist 270 High Alert Combat Kills 12 Follower Combat Kills 801 Met Data Miner 300 Used Data Conduit 3000 Met Imprinter 300 Was Imprinted 300 Pursued by Intercept 1000 Friendly Fire -3579 Cogmind --------- Core Integrity 0/1150 Matter 0/0 Energy 50/50 System Corruption 9% Temperature Cool (0) Movement Core (50) Location -4/Extension Parts ------- > --- POWER (1) -------- (None) > --- PROPULSION (2) --- (None) > --- UTILITY (1) ------ (None) > --- WEAPON (1) ------- Power Maul > --- INVENTORY (1) ---- (None) Peak State ------------ > --- POWER ------------ Light Particle Reactor Compact Particle Reactor > --- PROPULSION ------- Antigrav Array Antigrav Array > --- UTILITY ---------- Experimental Heat Sink Experimental Heat Sink Experimental Heat Sink Advanced Energy Well Gravity Neutralizer Improved Phase Shifter Improved Core Shielding Improved Weapon Shielding Light Regenerative Plating Remote Force Field Advanced Hacking Suite Advanced System Shield > --- WEAPON ----------- Arc Projector Arc Projector Arc Projector Arc Projector > --- INVENTORY -------- (None) [Rating: 139] Favorites ----------- Power Compact Particle Reactor Engine Heavy Deuterium Engine Power Core Fission Core Reactor Compact Particle Reactor Propulsion Antigrav Array Treads Improved Treads Wheel Compact Wheel Hover Unit Antigrav Array Flight Unit Integrated Tracker Drive Utility EX Chip 1 Device Experimental Heat Sink Storage Advanced Energy Well Processor Advanced Launcher Guidance Computer Hackware EX Chip 1 Protection Improved Core Shielding Weapon Arc Projector Energy Gun Arc Projector Ballistic Gun Linked Autogun Special Weapon Welding Torch Impact Weapon Power Maul Build | -11 -10 -10 -10 -9 -8 -7 -7 -7 -7 -6 -6 -6 -6 -6 -5 -5 -4 -4 ------- Run | Yrd Mat Min Exi Min Mat Fac Low Low Zio Pro Fac Low Low Dat Pro Fac Fac Ext Slots Evolved . | . . . . . . . . . . . . . . . . . . . Power . | . . . . . . . . . . . . . . . . . . . Propulsion . | . . . . . . . . . . . . . . . . . . . Utility . | . . . . . . . . . . . . . . . . . . . Weapon . | . . . . . . . . . . . . . . . . . . . Parts Attached . | . . . . . . . . . . . . . . . . . . . Power . | . . . . . . . . . . . . . . . . . . . Engine . | . . . . . . . . . . . . . . . . . . . Core . | . . . . . . . . . . . . . . . . . . . Reactor . | . . . . . . . . . . . . . . . . . . . Propulsion . | . . . . . . . . . . . . . . . . . . . Treads . | . . . . . . . . . . . . . . . . . . . Leg . | . . . . . . . . . . . . . . . . . . . Wheel . | . . . . . . . . . . . . . . . . . . . Hover . | . . . . . . . . . . . . . . . . . . . Flight . | . . . . . . . . . . . . . . . . . . . Utility . | . . . . . . . . . . . . . . . . . . . Device . | . . . . . . . . . . . . . . . . . . . Storage . | . . . . . . . . . . . . . . . . . . . Processor . | . . . . . . . . . . . . . . . . . . . Hackware . | . . . . . . . . . . . . . . . . . . . Protection . | . . . . . . . . . . . . . . . . . . . Artifact . | . . . . . . . . . . . . . . . . . . . Weapon . | . . . . . . . . . . . . . . . . . . . Energy Gun . | . . . . . . . . . . . . . . . . . . . Energy Cannon . | . . . . . . . . . . . . . . . . . . . Ballistic Gun . | . . . . . . . . . . . . . . . . . . . Ballistic Cannon . | . . . . . . . . . . . . . . . . . . . Launcher . | . . . . . . . . . . . . . . . . . . . Special Weapon . | . . . . . . . . . . . . . . . . . . . Impact Weapon . | . . . . . . . . . . . . . . . . . . . Slashing Weapon . | . . . . . . . . . . . . . . . . . . . Piercing Weapon . | . . . . . . . . . . . . . . . . . . . Special Melee Weapon . | . . . . . . . . . . . . . . . . . . . Unidentified Prototypes . | . . . . . . . . . . . . . . . . . . . Parts Lost 20 | . . . . . . 1 . . . . . 1 . 5 . 5 . 8 Power 3 | . . . . . . . . . . . . . . 1 . 1 . 1 Propulsion 4 | . . . . . . . . . . . . . . . . 2 . 2 Utility 8 | . . . . . . 1 . . . . . 1 . 2 . 1 . 3 Weapon 5 | . . . . . . . . . . . . . . 2 . 1 . 2 Highest Loss Streak 5 | . . . . . . 1 . . . . . 1 . 5 . 5 . 3 To Critical Strikes . | . . . . . . . . . . . . . . . . . . . Average Slot Usage (%) 78 | . 56 80 88 96 96 94 92 92 89 90 90 88 86 82 63 85 58 76 Engine 3 | . 14 20 10 3 3 3 3 3 . . . . . . . 11 6 . Reactor 2 | . . . . . . . . . 6 9 9 9 9 8 4 . . . Wheel 9 | . 28 40 18 . . . . . . . . . . . . 6 28 . Hover 4 | . . . 1 3 3 3 3 3 6 9 9 9 9 9 9 19 . . Device 15 | . . . . . . . . . 18 27 27 25 22 21 18 17 14 23 Storage 3 | . 14 20 9 . . . . . 2 4 4 4 4 4 4 . 6 . Processor 6 | . . . 8 15 15 15 15 15 4 . . . . . . 22 . 16 Hackware 15 | . . . 37 69 69 67 65 65 26 9 9 9 9 9 9 . . . Protection 4 | . . . . . . . . . 8 13 13 13 13 12 9 . . 2 Energy Gun 7 | . . . 1 3 3 3 3 3 13 18 18 18 18 16 9 . . 6 Naked Turns 804 | . 28 . 8 . . . . . 1 . . . . . . 36 730 1 Heaviest Build 63 | . 4 4 21 21 21 21 21 21 63 63 63 63 61 61 29 29 26 22 Greatest Support 64 | 3 20 20 21 21 21 21 21 21 64 64 64 64 64 64 64 64 64 46 Greatest Overweight (x) 4 | . . . . . . . . . . . . . . . . . . 4 Average Overweight (x) . | . . . . . . . . . . . . . . . . . . . Largest Inventory Capacity 6 | . 1 1 2 2 2 2 2 2 2 1 1 1 1 1 1 1 6 1 Average Capacity 1 | . . 1 1 2 2 2 2 2 1 1 1 1 1 1 1 . 3 . Most Carried 6 | . . . 2 1 1 1 1 1 1 . . 1 . . . . 6 . Average Carried . | . . . . 1 1 1 1 1 . . . . . . . . 1 . Final Capacity 6 | . 1 1 2 2 2 2 2 2 1 1 1 1 1 1 1 . 6 1 Final Carried 1 | . . . 1 1 1 1 1 1 . . . . . . . . 1 . Class Distribution -------------------- 34% | Data Miner 18% | Thief 15% | Recycler 12% | Cogmind 8% | Swarmer 3% | Watcher Dominant Class ---------------- Worker | -10/Materials Worker | -10/Mines Thief | -10/Exiles Thief | -9/Mines Thief | -8/Materials Thief | -7/Factory Thief | -7/Lower Caves Thief | -7/Lower Caves Data Miner | -7/Zion Data Miner | -6/Proximity Caves Data Miner | -6/Factory Data Miner | -6/Lower Caves Data Miner | -6/Lower Caves Data Miner | -6/Data Miner Data Miner | -5/Proximity Caves Watcher | -5/Factory Recycler | -4/Factory Swarmer | -4/Extension Resources | -11 -10 -10 -10 -9 -8 -7 -7 -7 -7 -6 -6 -6 -6 -6 -5 -5 -4 -4 ----------- Run | Yrd Mat Min Exi Min Mat Fac Low Low Zio Pro Fac Low Low Dat Pro Fac Fac Ext Matter Collected 509 | . . . . . . . . . . . . . . . . . 20 489 Remotely . | . . . . . . . . . . . . . . . . . . . Salvage Created 3669 | . . . . . 527 135 142 . . 221 241 623 1257 . . 26 . 497 Parts 160 | . . . . . 19 13 15 . . 10 11 27 42 . . 2 . 21 Haulers Intercepted . | . . . . . . . . . . . . . . . . . . . Recyclers Shooed . | . . . . . . . . . . . . . . . . . . . Parts Field Recycled . | . . . . . . . . . . . . . . . . . . . Retrieved Matter . | . . . . . . . . . . . . . . . . . . . Parts Self-Destructed 17 | . . . . . . . 2 . . 9 . 5 1 . . . . . Prevented 50 | . . . . . . . 13 . . 20 . 17 . . . . . . Kills | -11 -10 -10 -10 -9 -8 -7 -7 -7 -7 -6 -6 -6 -6 -6 -5 -5 -4 -4 ------- Run | Yrd Mat Min Exi Min Mat Fac Low Low Zio Pro Fac Low Low Dat Pro Fac Fac Ext Combat Hostiles Destroyed 43 | . . . . . 9 5 5 . . 4 4 10 . . . . . 6 Guns 32 | . . . . . 7 5 3 . . 3 3 5 . . . . . 6 AOE 4 | . . . . . 2 . . . . . 1 1 . . . . . . Classes Destroyed 14 | . . . . . 2 2 1 . . 3 2 1 . . . . . 3 Worker 1 | . . . . . . . . . . . . . . . . 1 . . Tunneler 1 | . . . . . . . . . . . 1 . . . . . . . Recycler 1 | . . . . . . . . . . . . . . . . . . 1 Drone 1 | . . . . . . . . . . 1 . . . . . . . . Watcher 3 | . . . . . . . . . . . . . . . . . . 3 Swarmer 10 | . . . . . . 4 . . . . 4 2 . . . . . . Grunt 18 | . . . . . 7 . 4 . . . . 6 . . . . . 1 Brawler 1 | . . . . . . . . . . 1 . . . . . . . . Duelist 3 | . . . . . 2 . . . . 1 . . . . . . . . Sentry 5 | . . . . . . 1 . . . . . . . . . . . 4 Hunter 3 | . . . . . . . . . . 1 . 2 . . . . . . Programmer 1 | . . . . . . . 1 . . . . . . . . . . . Behemoth 1 | . . . . . . . . . . . . . . . . . . 1 Decomposer 1 | . . . . . . . . . . . . 1 . . . . . . Savage 3 | . . . . . . . . . . . . . 3 . . . . . Butcher 4 | . . . . . . . . . . . . . 4 . . . . . Guerrilla 1 | . . . . . . . . . . . . . 1 . . . . . Mutant 4 | . . . . . . . . . . . 2 . 2 . . . . . Commander 1 | . . . . . . . . . . . . . 1 . . . . . Best Kill Streak 7 | . . . . . 7 4 4 . . 2 3 5 . . . 1 . 6 Combat Bots Only 7 | . . . . . 7 4 4 . . 2 2 5 . . . . . 5 Max Kills in Single Turn 2 | . . . . . 2 1 1 . . 1 2 1 1 . . 1 . 1 Gunslinging . | . . . . . . . . . . . . . . . . . . . Exploded 2 | . . . . . 2 . . . . . 1 1 . . . . . . Melee . | . . . . . . . . . . . . . . . . . . . Uniques/NPCs Destroyed . | . . . . . . . . . . . . . . . . . . . Combat | -11 -10 -10 -10 -9 -8 -7 -7 -7 -7 -6 -6 -6 -6 -6 -5 -5 -4 -4 -------- Run | Yrd Mat Min Exi Min Mat Fac Low Low Zio Pro Fac Low Low Dat Pro Fac Fac Ext Hostile Shots Fired 521 | . 9 . . . 4 16 16 . . 24 85 38 8 18 10 43 51 199 Missed 256 | . 6 . . . 1 7 8 . . 16 47 18 2 3 3 19 32 94 Damage Taken 4073 | . 46 . . . 64 89 21 . . 56 263 171 45 365 100 511 359 1983 Core 1626 | . 46 . . . 17 6 2 . . . 36 10 . 14 52 278 305 860 Absorbed by Shields 554 | . . . . . . . . . . 53 149 159 40 153 . . . . Redirected to Shielding 150 | . . . . . . . . . . 7 63 33 10 17 20 . . . Ignored by Resistances 682 | . . . . . . . 98 . . 40 127 158 31 180 36 . 12 . Regen/Repaired (Parts) 111 | . . . . . . . . . . 11 31 21 . 3 35 10 . . Core Remaining (%) 88 | 100 . . . 81 96 . . . . 98 . . . . 86 72 . . Volleys Fired 152 | . . . . . . . . . 1 16 8 30 39 3 . . . 55 Largest 4 | . . . . . . . . . 4 4 4 4 4 4 . . . 2 Hottest 220 | . . . . . . . . . 220 220 220 220 220 220 . . . 110 Shots Fired 505 | . . . . . 24 11 21 . 4 63 32 120 156 9 . . . 65 Gun 505 | . . . . . 24 11 21 . 4 63 32 120 156 9 . . . 65 Cannon . | . . . . . . . . . . . . . . . . . . . Launcher . | . . . . . . . . . . . . . . . . . . . Special . | . . . . . . . . . . . . . . . . . . . Kinetic 48 | . . . . . . . . . . . . . . . . . . 48 Thermal . | . . . . . . . . . . . . . . . . . . . Explosive . | . . . . . . . . . . . . . . . . . . . Electromagnetic 457 | . . . . . 24 11 21 . 4 63 32 120 156 9 . . . 17 Robot Hit Streak 46 | . . . . . 9 6 20 . . 21 14 11 13 4 . . . 46 Robot Miss Streak 4 | . . . . . 3 2 1 . . 3 2 4 4 2 . . . 3 Penetration Max . | . . . . . . . . . . . . . . . . . . . Secondary Targets 1 | . . . . . . . . . . . . 1 . . . . . . Max Gunslinging Chain 1 | . . . . . . . . . . . . 1 . . . . . . Autonomous 56 | . . . . . 24 11 21 . . . . . . . . . . . Shots Hit Robots 362 | . . . . . 22 10 21 . . 38 20 72 114 5 . . . 60 Core Hits 188 | . . . . . 18 11 16 . . 17 14 33 48 2 . 1 . 28 Critical Kills 1 | . . . . . . . . . . . . . . . . . . 1 Critical Parts Destroyed 1 | . . . . . . . . . . . . . . . . . . 1 Critical Strikes 12 | . . . . . 6 . 4 . . . . . . . . . . 2 Destroy 1 | . . . . . . . . . . . . . . . . . . 1 Corrupt 10 | . . . . . 6 . 4 . . . . . . . . . . . Smash 1 | . . . . . . . . . . . . . . . . . . 1 Melee Attacks 17 | . . . . . . . . . . . . . . . . . . 17 Impact 17 | . . . . . . . . . . . . . . . . . . 17 Slashing . | . . . . . . . . . . . . . . . . . . . Piercing . | . . . . . . . . . . . . . . . . . . . Sneak Attacks 1 | . . . . . . . . . . . . . . . . . . 1 Combat Hostiles . | . . . . . . . . . . . . . . . . . . . Follow-up Attacks . | . . . . . . . . . . . . . . . . . . . Damage Inflicted 8106 | . . . . . 672 249 387 . . 793 803 1223 1499 34 . 21 . 2425 Guns 6271 | . . . . . 572 249 387 . . 509 208 919 1219 34 . . . 2174 Cannons . | . . . . . . . . . . . . . . . . . . . Explosions 1563 | . . . . . 100 . . . . 284 595 304 280 . . . . . Melee 251 | . . . . . . . . . . . . . . . . . . 251 Ramming 21 | . . . . . . . . . . . . . . . . 21 . . Kinetic 2128 | . . . . . . . . . . . . . . . . . . 2128 Thermal 1026 | . . . . . 100 . . . . 284 58 304 280 . . . . . Explosive 537 | . . . . . . . . . . . 537 . . . . . . . Electromagnetic 4143 | . . . . . 572 249 387 . . 509 208 919 1219 34 . . . 46 Impact 251 | . . . . . . . . . . . . . . . . . . 251 Slashing . | . . . . . . . . . . . . . . . . . . . Piercing . | . . . . . . . . . . . . . . . . . . . Highest Corruption 9 | . . . . . . . . . . . . . . . . 1 2 9 Average Corruption 3 | . . . . . . . . . . . . . . . . 1 1 3 Corruption Purged . | . . . . . . . . . . . . . . . . . . . Corruption Blocked 2 | . . . . . . . . . . . . . . . . 2 . . Effects 12 | . . . . . . . . . . . . . . . . 2 . 10 Message Errors 2 | . . . . . . . . . . . . . . . . . . 2 Matter Fused 3 | . . . . . . . . . . . . . . . . . . 3 Heat Flow Errors 3 | . . . . . . . . . . . . . . . . 2 . 1 Data Loss (minor) 3 | . . . . . . . . . . . . . . . . . . 3 Alerts 1 | . . . . . . . . . . . . . . . . . . 1 Overload Shots . | . . . . . . . . . . . . . . . . . . . Overflow Damage 208 | . . . . . . . . . . 23 48 19 . . . . . 118 Projectiles . | . . . . . . . . . . . . . . . . . . . Explosions 90 | . . . . . . . . . . 23 48 19 . . . . . . Melee 118 | . . . . . . . . . . . . . . . . . . 118 Knockbacks 2 | . . . . . . . . . . . . . . . . . . 2 Impact 2 | . . . . . . . . . . . . . . . . . . 2 Kinetic . | . . . . . . . . . . . . . . . . . . . Secondary . | . . . . . . . . . . . . . . . . . . . Self-Inflicted Damage 213 | . . . . . . . . . . 24 129 51 . . . 9 . . Shots 4 | . . . . . . . . . . 1 2 1 . . . . . . Rammed 5 | . . . . . . . . . . . . . . . . 5 . . Targets Rammed 5 | . . . . . . . . . . . . . . . . 5 . . Kicked . | . . . . . . . . . . . . . . . . . . . Crushed . | . . . . . . . . . . . . . . . . . . . Highest Temperature 193 | . . . . . 1 . 14 . . . . . . . . 193 38 141 Average Temperature 42 | . . . . . 1 . 8 . . . . . . . . 73 38 22 Received Heat Transfer 499 | . 24 . . . 36 12 27 . . 9 48 16 26 . 57 . . 244 Siege Activations . | . . . . . . . . . . . . . . . . . . . Robots Corrupted 13 | . . . . . . . 2 . . 1 . 4 6 . . . . . Combat Hostiles 7 | . . . . . . . 2 . . 1 . 4 . . . . . . Parts Fried 38 | . . . . . 4 . 3 . . 4 . 10 15 . . . . 2 Impact Corruptions 4 | . . . . . . . . . . . . . . . . . . 4 Robots Melted . | . . . . . . . . . . . . . . . . . . . Combat Hostiles . | . . . . . . . . . . . . . . . . . . . Parts Melted 1 | . . . . . 1 . . . . . . . . . . . . . Heat Transferred 750 | . . . . . 100 . . . . 250 . 200 200 . . . . . Parts Sabotaged . | . . . . . . . . . . . . . . . . . . . Parts Stolen . | . . . . . . . . . . . . . . . . . . . Parts Stripped . | . . . . . . . . . . . . . . . . . . . Power Chain Reactions 10 | . . . . . 1 . . . . 2 1 3 3 . . . . . Alert | -11 -10 -10 -10 -9 -8 -7 -7 -7 -7 -6 -6 -6 -6 -6 -5 -5 -4 -4 ------- Run | Yrd Mat Min Exi Min Mat Fac Low Low Zio Pro Fac Low Low Dat Pro Fac Fac Ext Peak Influence 536 | . . . . . 267 279 . . . . 536 . . . . 326 225 391 Initial 211 | . . . . . . 121 . . . . 211 . . . . 46 32 109 Average 115 | . . . . . 119 165 . . . . 404 . . . . 158 11 291 Maximum Alert Level 2 | . . . . . 1 1 . . . . 2 . . . . 1 1 1 Low Security (%) 71 | 100 100 100 . 100 74 67 . . . . . . . . . 63 99 19 Level 1 25 | . . . . . 25 32 . . . . 41 . . . . 36 . 80 Level 2 3 | . . . . . . . . . . . 58 . . . . . . . Level 3 . | . . . . . . . . . . . . . . . . . . . Level 4 . | . . . . . . . . . . . . . . . . . . . Level 5 . | . . . . . . . . . . . . . . . . . . . High Security . | . . . . . . . . . . . . . . . . . . . Max Security . | . . . . . . . . . . . . . . . . . . . Squads Dispatched 19 | . 1 . . . . . . . . . 1 . . . . 5 9 3 Investigation 4 | . . . . . . . . . . . . . . . . . 1 3 Extermination 5 | . . . . . . . . . . . . . . . . . 5 . Reinforcement 5 | . 1 . . . . . . . . . 1 . . . . 3 . . Assault . | . . . . . . . . . . . . . . . . . . . Garrison . | . . . . . . . . . . . . . . . . . . . Intercept 5 | . . . . . . . . . . . . . . . . 2 3 . Searches Triggered . | . . . . . . . . . . . . . . . . . . . Construction Impeded . | . . . . . . . . . . . . . . . . . . . Haulers Reinforced 1 | . . . . . . . . . . . . . . . . 1 . . Active Scanning Responses . | . . . . . . . . . . . . . . . . . . . Cargo Convoy Interrupts . | . . . . . . . . . . . . . . . . . . . Stealth | -11 -10 -10 -10 -9 -8 -7 -7 -7 -7 -6 -6 -6 -6 -6 -5 -5 -4 -4 --------- Run | Yrd Mat Min Exi Min Mat Fac Low Low Zio Pro Fac Low Low Dat Pro Fac Fac Ext Distress Signals 5 | . 2 . . . . . . . . . . . . . . 1 . 2 Communications Jammed . | . . . . . . . . . . . . . . . . . . . Distress Signals . | . . . . . . . . . . . . . . . . . . . Times Spotted 155 | . 6 . . . 14 5 5 . . 11 8 13 3 5 5 22 31 27 Peak Tracking Total 25 | . 6 . . . 4 3 4 . . 3 3 4 4 4 5 9 25 7 Tactical Retreats 13 | . . . . . 1 . . . . . 1 2 3 . 2 1 1 2 Traps | -11 -10 -10 -10 -9 -8 -7 -7 -7 -7 -6 -6 -6 -6 -6 -5 -5 -4 -4 ------- Run | Yrd Mat Min Exi Min Mat Fac Low Low Zio Pro Fac Low Low Dat Pro Fac Fac Ext Traps Triggered 4 | . . . . . . . . . . . . . . . . 1 1 2 Indirectly . | . . . . . . . . . . . . . . . . . . . Trap Hack Attempts . | . . . . . . . . . . . . . . . . . . . Triggered . | . . . . . . . . . . . . . . . . . . . Disarmed . | . . . . . . . . . . . . . . . . . . . Reprogrammed . | . . . . . . . . . . . . . . . . . . . Reused 1 | . . . . . . . . . . . . 1 . . . . . . Traps Extracted . | . . . . . . . . . . . . . . . . . . . Installed 1 | . . . . . . . . . . . . 1 . . . . . . Triggered 3 | . . . . . . . . . . . . 2 . . 1 . . . Most Traps Carried 1 | . . . . . . . . . . . . 1 . . . . . . Machines | -11 -10 -10 -10 -9 -8 -7 -7 -7 -7 -6 -6 -6 -6 -6 -5 -5 -4 -4 ---------- Run | Yrd Mat Min Exi Min Mat Fac Low Low Zio Pro Fac Low Low Dat Pro Fac Fac Ext Machines Disabled 10 | . . . . . 1 . . . . . 6 . 1 . . 2 . . Max in Single Turn 4 | . . . . . 1 . . . . . 4 . 1 . . . . . Garrison Access 2 | . . . . . . 1 . . . . 1 . . . . . . . Machines Repaired . | . . . . . . . . . . . . . . . . . . . Machines Dismantled . | . . . . . . . . . . . . . . . . . . . Machines Sabotaged . | . . . . . . . . . . . . . . . . . . . Overloaded Fab Kills . | . . . . . . . . . . . . . . . . . . . Hacking | -11 -10 -10 -10 -9 -8 -7 -7 -7 -7 -6 -6 -6 -6 -6 -5 -5 -4 -4 --------- Run | Yrd Mat Min Exi Min Mat Fac Low Low Zio Pro Fac Low Low Dat Pro Fac Fac Ext Machines Accessed 19 | . 1 . 1 2 1 2 . . . . 1 . 3 4 . 1 . 3 Terminals 7 | . 1 . . 1 1 1 . . . . . . . . . . . 3 Fabricators . | . . . . . . . . . . . . . . . . . . . Repair Stations . | . . . . . . . . . . . . . . . . . . . Recycling Units . | . . . . . . . . . . . . . . . . . . . Scanalyzers . | . . . . . . . . . . . . . . . . . . . Garrison Access 3 | . . . . . . 1 . . . . 1 . . . . 1 . . Total Hacks 75 | . 1 . 1 6 7 10 . . . . 2 . 6 32 . 1 . 9 Successful 60 | . . . 1 6 6 7 . . . . 1 . 6 32 . . . 1 Failed 15 | . 1 . . . 1 3 . . . . 1 . . . . 1 . 8 Catastrophic 5 | . 1 . . . . 1 . . . . . . . . . 1 . 2 Database Lockouts . | . . . . . . . . . . . . . . . . . . . Manual 71 | . 1 . . 6 8 9 . . . . 10 . . . . 26 2 9 Terminals 31 | . 1 . . 5 7 9 . . . . . . . . . . . 9 Fabricators . | . . . . . . . . . . . . . . . . . . . Repair Stations . | . . . . . . . . . . . . . . . . . . . Recycling Units . | . . . . . . . . . . . . . . . . . . . Scanalyzers . | . . . . . . . . . . . . . . . . . . . Garrison Access 4 | . . . . . . 1 . . . . 2 . . . . 1 . . Terminal Hacks 58 | . . . 1 6 6 6 . . . . . . 6 32 . . . 1 Record 16 | . . . 1 . . . . . . . . . 4 11 . . . . Part Schematic 12 | . . . . . . . . . . . . . . 12 . . . . Robot Schematic 6 | . . . . . . . . . . . . . . 6 . . . . Robot Analysis 13 | . . . . 4 4 5 . . . . . . . . . . . . Prototype ID Bank 3 | . . . . . . . . . . . . . . 3 . . . . Open Door 4 | . . . . 1 . . . . . . . . 2 . . . . 1 Level Access Points 2 | . . . . 1 1 . . . . . . . . . . . . . Branch Access Points 2 | . . . . . 1 1 . . . . . . . . . . . . Fabricator Hacks . | . . . . . . . . . . . . . . . . . . . Repair Station Hacks . | . . . . . . . . . . . . . . . . . . . Recycling Unit Hacks . | . . . . . . . . . . . . . . . . . . . Scanalyzer . | . . . . . . . . . . . . . . . . . . . Garrison Access Hacks 2 | . . . . . . 1 . . . . 1 . . . . . . . Seal Access 2 | . . . . . . 1 . . . . 1 . . . . . . . Unauthorized Hacks . | . . . . . . . . . . . . . . . . . . . Terminals . | . . . . . . . . . . . . . . . . . . . Fabricators . | . . . . . . . . . . . . . . . . . . . Repair Stations . | . . . . . . . . . . . . . . . . . . . Recycling Units . | . . . . . . . . . . . . . . . . . . . Scanalyzers . | . . . . . . . . . . . . . . . . . . . Garrison Access . | . . . . . . . . . . . . . . . . . . . Data Cores Recovered 1 | . . . . . . . . . . . . . . . . 1 . . Used . | . . . . . . . . . . . . . . . . . . . Hacking Detections 7 | . 1 . . 1 . 1 . . . . . . . . . 1 . 3 Full Trace Events 2 | . . . . . . . . . . . . . . . . . . 2 Feedback Events . | . . . . . . . . . . . . . . . . . . . Feedback Blocked . | . . . . . . . . . . . . . . . . . . . Robot Schematics Acquired 17 | . . . . . . . . . 3 . . . . 6 . 8 . . Robots Built . | . . . . . . . . . . . . . . . . . . . Authchips . | . . . . . . . . . . . . . . . . . . . Time . | . . . . . . . . . . . . . . . . . . . Total Robot Build Rating . | . . . . . . . . . . . . . . . . . . . Part Schematics Acquired 36 | . . . . . . . . . 14 . . . . 12 . 10 . . Parts Built . | . . . . . . . . . . . . . . . . . . . Authchips . | . . . . . . . . . . . . . . . . . . . Time . | . . . . . . . . . . . . . . . . . . . Total Part Build Rating . | . . . . . . . . . . . . . . . . . . . Parts Repaired . | . . . . . . . . . . . . . . . . . . . Time . | . . . . . . . . . . . . . . . . . . . Parts Recycled . | . . . . . . . . . . . . . . . . . . . Recycled Matter . | . . . . . . . . . . . . . . . . . . . Retrieved Matter . | . . . . . . . . . . . . . . . . . . . Retrieved Components . | . . . . . . . . . . . . . . . . . . . Parts Scanalyzed . | . . . . . . . . . . . . . . . . . . . Part Schematics Acquired . | . . . . . . . . . . . . . . . . . . . Parts Damaged . | . . . . . . . . . . . . . . . . . . . Bothacking | -11 -10 -10 -10 -9 -8 -7 -7 -7 -7 -6 -6 -6 -6 -6 -5 -5 -4 -4 ------------ Run | Yrd Mat Min Exi Min Mat Fac Low Low Zio Pro Fac Low Low Dat Pro Fac Fac Ext Used RIF Installer . | . . . . . . . . . . . . . . . . . . . Robots Hacked 3 | . . . . . . . . . . . . . . . . 2 1 . Non-combat 3 | . . . . . . . . . . . . . . . . 2 1 . Combat . | . . . . . . . . . . . . . . . . . . . Robot Hacks Applied 4 | . . . . . . . . . . . . . . . . 3 1 . map_walls 1 | . . . . . . . . . . . . . . . . 1 . . find_recycling 1 | . . . . . . . . . . . . . . . . . 1 . map_route 1 | . . . . . . . . . . . . . . . . 1 . . mark_security 1 | . . . . . . . . . . . . . . . . 1 . . Relay Couplers Released . | . . . . . . . . . . . . . . . . . . . Fabnet Peak Effective % . | . . . . . . . . . . . . . . . . . . . Robots Rewired 7 | . . . . . . . . . . . . . . . . . . 7 Allies Hacked . | . . . . . . . . . . . . . . . . . . . Hacks Repelled . | . . . . . . . . . . . . . . . . . . . Allies | -11 -10 -10 -10 -9 -8 -7 -7 -7 -7 -6 -6 -6 -6 -6 -5 -5 -4 -4 -------- Run | Yrd Mat Min Exi Min Mat Fac Low Low Zio Pro Fac Low Low Dat Pro Fac Fac Ext Total Allies 24 | . . . . . . . . . 4 . 1 . . . . 4 . 15 Largest Group 10 | . . . . . . . . . 4 4 4 . . . . 2 . 10 Highest-Rated Group 540 | . . . . . . . . . 155 155 155 . . . . 170 . 540 Highest-Rated Ally 103 | . . . . . . . . . 39 39 39 . . . . 85 . 103 Zionite Dispatches 7 | . . . . . . . . . . . 1 . . . . 3 . 3 Heavy 2 | . . . . . . . . . . . . . . . . 1 . 1 Recon 1 | . . . . . . . . . . . . . . . . 1 . . Fire 1 | . . . . . . . . . . . . . . . . . . 1 Hacker 1 | . . . . . . . . . . . . . . . . 1 . . Infowar Resupply 1 | . . . . . . . . . . . . . . . . . . 1 Hacking Resupply 1 | . . . . . . . . . . . 1 . . . . . . . Total Orders . | . . . . . . . . . . . . . . . . . . . Ally Attacks 127 | . . . . . . . . . . 28 12 . . . . 35 . 52 Total Damage 4138 | . . . . . . . . . . 579 218 . . . . 1329 . 2012 Kills 27 | . . . . . . . . . . 8 1 . . . . 7 . 11 Allies Corrupted . | . . . . . . . . . . . . . . . . . . . Allies Melted . | . . . . . . . . . . . . . . . . . . . Intel | -11 -10 -10 -10 -9 -8 -7 -7 -7 -7 -6 -6 -6 -6 -6 -5 -5 -4 -4 ------- Run | Yrd Mat Min Exi Min Mat Fac Low Low Zio Pro Fac Low Low Dat Pro Fac Fac Ext Robot Analysis Total 148 | . 1 . . 4 4 5 . . . . . . . 134 . . . . Derelict Logs Recovered 8 | . . . . . . . 2 . 1 1 . 1 2 . 1 . . . Drone Launches . | . . . . . . . . . . . . . . . . . . . Drone Recoveries . | . . . . . . . . . . . . . . . . . . . Zionite Intel Received 7 | . . . . . . . . . . . 1 . . . . 5 . 1 Branch Access 1 | . . . . . . . . . . . 1 . . . . . . . Prototype Stockpiles 1 | . . . . . . . . . . . . . . . . 1 . . Prototype Schematics 1 | . . . . . . . . . . . . . . . . 1 . . Unaware Schematics 2 | . . . . . . . . . . . . . . . . 2 . . Trap Installations 1 | . . . . . . . . . . . . . . . . . . 1 Active Garrisons 1 | . . . . . . . . . . . . . . . . 1 . . Exploration | -11 -10 -10 -10 -9 -8 -7 -7 -7 -7 -6 -6 -6 -6 -6 -5 -5 -4 -4 ------------- Run | Yrd Mat Min Exi Min Mat Fac Low Low Zio Pro Fac Low Low Dat Pro Fac Fac Ext Turns Passed 6693 | 11 105 8 242 103 162 181 269 171 640 313 205 304 853 63 103 436 1798 726 Spaces Moved 8525 | 21 152 10 302 129 185 225 331 214 878 344 285 345 1193 96 178 589 1871 1177 Core 860 | 21 54 . 11 . . . . . 2 . . . . . . 53 676 43 Treads 49 | . . . . . . . . . . . . . . . . . . 49 Legs . | . . . . . . . . . . . . . . . . . . . Wheels 1335 | . 98 10 131 . . . . . . . . . . . . 132 964 . Hover 4965 | . . . 160 129 185 225 331 214 876 344 285 345 1193 96 178 404 . . Flight 1316 | . . . . . . . . . . . . . . . . . 231 1085 Fastest Speed 15 | 50 50 80 50 80 80 80 80 80 50 56 56 56 56 56 56 50 15 15 Average Speed 60 | 50 69 80 78 80 80 80 80 80 63 56 56 56 56 56 56 60 71 24 Slowest Speed 250 | 50 80 80 80 80 80 80 80 80 80 56 56 56 56 56 56 80 100 250 Overloaded Moves . | . . . . . . . . . . . . . . . . . . . Propulsion Burnouts . | . . . . . . . . . . . . . . . . . . . Robots Hopped 44 | . . . . . . . . . . . . . . . . . 13 31 Cave-ins Triggered . | . . . . . . . . . . . . . . . . . . . Exploration Rate (%) 41 | 3 40 3 54 30 18 7 54 41 87 57 7 49 97 77 41 24 22 75 Regions Visited 18 Branch Regions 12 Pre-discovered Areas 30 | . . . 1 . . . 1 . 1 . . . 1 26 . . . . Known Exits Taken 7 | . . . . 1 1 1 . . . . 1 . . . 1 1 1 . Unknown Exits Taken 11 | 1 1 1 1 . . . 1 1 1 1 . 1 1 1 . . . . Scrap Searched 14 | . . . . . . . 2 1 2 3 . . 5 . 1 . . . Spaces Dug 2 | . . . . . . . . . . . . . . . . . . 2 Terrain Destroyed 121 | . . . . . 2 . . . . 9 75 21 12 . . . . 2 Melee 2 | . . . . . . . . . . . . . . . . . . 2 Projectile . | . . . . . . . . . . . . . . . . . . . AOE 119 | . . . . . 2 . . . . 9 75 21 12 . . . . . Terrain Rammed . | . . . . . . . . . . . . . . . . . . . Walls Destroyed . | . . . . . . . . . . . . . . . . . . . Machines Disabled . | . . . . . . . . . . . . . . . . . . . Actions | -11 -10 -10 -10 -9 -8 -7 -7 -7 -7 -6 -6 -6 -6 -6 -5 -5 -4 -4 --------- Run | Yrd Mat Min Exi Min Mat Fac Low Low Zio Pro Fac Low Low Dat Pro Fac Fac Ext Total 9731 | 20 151 9 305 128 198 225 334 213 961 423 309 380 1279 98 180 666 2318 1534 Wait 934 | . . . 2 . 14 1 4 . 83 64 17 3 48 . 3 57 421 217 Move 8423 | 20 151 9 301 128 184 224 330 213 877 343 284 344 1192 95 177 588 1845 1118 Hop 40 | . . . . . . . . . . . . . . . . . 12 28 Pick Up 25 | . . . 1 . . . . . . . . 1 . . . . 23 . Fast Attach . | . . . . . . . . . . . . . . . . . . . Attach . | . . . . . . . . . . . . . . . . . . . Detach . | . . . . . . . . . . . . . . . . . . . Swap . | . . . . . . . . . . . . . . . . . . . Drop 2 | . . . 1 . . . . . . . . 1 . . . . . . Fire 152 | . . . . . . . . . 1 16 8 30 39 3 . . . 55 Melee 17 | . . . . . . . . . . . . . . . . . . 17 Ram 5 | . . . . . . . . . . . . . . . . 5 . . Kick . | . . . . . . . . . . . . . . . . . . . Crush . | . . . . . . . . . . . . . . . . . . . Escape Stasis 15 | . . . . . . . . . . . . . . . . 15 . . Rewire 100 | . . . . . . . . . . . . . . . . 1 . 99 Trap 1 | . . . . . . . . . . . . 1 . . . . . . Miscellaneous 17 | . . . . . . . . . . . . . . . . . 17 . Route ------- -11/Scrapyard -10/Materials (discovered 2 exits: [*Mat] / [*Min]) -10/Mines -10/Exiles -9/Mines (discovered 2 exits: *Mat x2) -8/Materials (discovered 4 exits: *Fac x3 / Sto) -7/Factory (discovered 2 exits: *Low x2) -7/Lower Caves -7/Lower Caves -7/Zion -6/Proximity Caves -6/Factory (discovered 3 exits: Fac / *Low x2) -6/Lower Caves -6/Lower Caves (discovered 2 exits: *Fac / *Dat) -6/Data Miner -5/Proximity Caves -5/Factory -4/Factory (discovered 3 exits: [*Res] / *Ext x2) -4/Extension History --------- Turn | Location | Event 5 | -11/Scrapyard | Discovered new exit (range 13) 12 | -11/Scrapyard | Entered Materials 67 | -10/Materials | Discovered new exit (range 13) 105 | -10/Materials | Discovered new exit (range 9) 117 | -10/Materials | Entered Mines 122 | -10/Mines | Deemed a non-threat by the Exiles lab entrance 122 | -10/Mines | Discovered new exit (range 5) 125 | -10/Mines | Entered Exiles 146 | -10/Exiles | Met 8R-AWN 160 | -10/Exiles | Met EX-HEX 192 | -10/Exiles | Met EX-DEC 238 | -10/Exiles | Took control of EX-DEC (ally) 299 | -10/Exiles | Discovered new exit (range 12) 337 | -10/Exiles | Learned location of Zion (-7) 367 | -10/Exiles | Left Exiles lab with Deploy-a-Sentry 367 | -10/Exiles | Entered Mines 371 | -9/Mines | Met a Derelict who couldn't figure out how to use a Trap Extractor 434 | -9/Mines | Identified exit to Materials 470 | -9/Mines | Entered Materials 485 | -8/Materials | Identified exit to Storage 485 | -8/Materials | Identified exit to Factory 627 | -8/Materials | Destroyed 7 combat bots 632 | -8/Materials | Entered Factory 701 | -7/Factory | Identified exit to Lower Caves 813 | -7/Factory | Entered Lower Caves 986 | -7/Lower Caves | Discovered new exit (range 15) 990 | -7/Lower Caves | Learned location of Extension (-4) 1082 | -7/Lower Caves | Entered another Lower Caves area 1103 | -7/Lower Caves | Encountered a Warlord checkpoint 1247 | -7/Lower Caves | Discovered new exit (range 10) 1253 | -7/Lower Caves | Entered Zion 1314 | -7/Zion | Discovered new exit (range 15) 1460 | -7/Zion | Took control of A8 (ally) 1609 | -7/Zion | Imprinted 1611 | -7/Zion | Declared Zion's savior 1893 | -7/Zion | Entered Proximity Caves 1893 | -6/Proximity Caves | Accompanied by 4 allies 1917 | -6/Proximity Caves | Learned location of 1 exit from Factory 2058 | -6/Proximity Caves | Attracted the attention of an 0b10 checkpoint 2139 | -6/Proximity Caves | Discovered new exit (range 15) 2206 | -6/Proximity Caves | Entered Factory 2206 | -6/Factory | Accompanied by 4 allies 2207 | -6/Factory | Identified exit to Factory 2291 | -6/Factory | Discovered new exit (range 15) 2355 | -6/Factory | Lost 4 allies 2359 | -6/Factory | Retrieved Zion intel report: Branch Access 2359 | -6/Factory | Identified exit to Lower Caves 2360 | -6/Factory | Zion Hacking Resupply teleported in 2411 | -6/Factory | Entered Lower Caves 2512 | -6/Lower Caves | Learned Factory terminal intel 2712 | -6/Lower Caves | Discovered new exit (range 3) 2715 | -6/Lower Caves | Entered another Lower Caves area 2725 | -6/Lower Caves | Discovered exit to Factory (range 5) 2817 | -6/Lower Caves | Learned 8 Factory zone layouts 2817 | -6/Lower Caves | Learned Research emergency access door positions 2839 | -6/Lower Caves | Encountered a Warlord checkpoint 2899 | -6/Lower Caves | Murdered 3 allies 3073 | -6/Lower Caves | Discovered new exit (range 2) 3093 | -6/Lower Caves | Learned Factory terminal intel 3414 | -6/Lower Caves | Destroyed XR-IVG(g) 3500 | -6/Lower Caves | Murdered 7 allies 3568 | -6/Lower Caves | Entered Data Miner 3568 | -6/Data Miner | Discovered new exit (range 6) 3579 | -6/Data Miner | Met Data Miner 3589 | -6/Data Miner | Learned location of Section 7 (-2) 3589 | -6/Data Miner | Acquired the access code to Warlord's prototype stash 3599 | -6/Data Miner | Received God Mode back door access code from Data Miner 3608 | -6/Data Miner | Interfaced with the Data Conduit 3631 | -6/Data Miner | Entered Proximity Caves 3657 | -5/Proximity Caves | Lost 5 parts (1p2u2w) 3724 | -5/Proximity Caves | Discovered exit to Factory (range 16) 3731 | -5/Proximity Caves | Learned location of 1 exit from Factory 3734 | -5/Proximity Caves | Entered Factory 3735 | -5/Factory | Identified exit to Factory 3737 | -5/Factory | Loaded intel: 231 machine locations 3738 | -5/Factory | Loaded intel: 26 terminal locations 3833 | -5/Factory | Retrieved Zion intel report: Unaware Schematics 3834 | -5/Factory | Zion Heavy squad teleported in 3893 | -5/Factory | Retrieved Zion intel report: Prototype Schematics 3945 | -5/Factory | Retrieved Zion intel report: Prototype Stockpiles 3978 | -5/Factory | Retrieved Zion intel report: Active Garrisons 3979 | -5/Factory | Zion Recon squad teleported in 4004 | -5/Factory | Intercept squad dispatched 4014 | -5/Factory | Spotted Tracker 4024 | -5/Factory | Allies destroyed Tracker 4040 | -5/Factory | Spotted Combat Programmer 4096 | -5/Factory | Zion Hacker squad teleported in 4161 | -5/Factory | Retrieved Zion intel report: Unaware Schematics 4170 | -5/Factory | Entered another Factory area 4171 | -4/Factory | Identified exit to Extension 4172 | -4/Factory | Loaded intel: 293 machine locations 4173 | -4/Factory | Loaded intel: 28 terminal locations 4201 | -4/Factory | Lost 5 parts (1p2n1u1w) 5195 | -4/Factory | Intercept squad dispatched 5617 | -4/Factory | Terminal network hard line cut 5914 | -4/Factory | Intercept squad dispatched 5930 | -4/Factory | Spotted Tracker 5934 | -4/Factory | Took control of Tracker 5939 | -4/Factory | Spotted B-86 Titan 5951 | -4/Factory | Discovered new exit (range 17) 5966 | -4/Factory | Discovered exit to Extension (range 14) 5968 | -4/Factory | Entered Extension 5969 | -4/Extension | Loaded intel: 28 machine locations 5980 | -4/Extension | Retrieved Zion intel report: Trap Installations 5981 | -4/Extension | Zion Infowar Resupply teleported in 5982 | -4/Extension | Zion Fire squad teleported in 6030 | -4/Extension | Zion Heavy squad teleported in 6052 | -4/Extension | Spotted B-86 Titan 6392 | -4/Extension | Spotted B-86 Titan 6406 | -4/Extension | Allies destroyed B-86 Titan 6417 | -4/Extension | Destroyed B-86 Titan 6430 | -4/Extension | Rescued a captive Derelict 6451 | -4/Extension | Lost 3 parts (1u2w) 6451 | -4/Extension | Lost 4 allies 6505 | -4/Extension | Core integrity fell below 50% 6515 | -4/Extension | Spotted Tracker 6633 | -4/Extension | Lost 3 parts (2n1u) 6642 | -4/Extension | Core integrity fell below 20% 6689 | -4/Extension | Rescued a captive Derelict 6694 | -4/Extension | Destroyed by H-77 Assassin with Coil Gun Last Messages --------------- 06632_ Slug penetrates U-05 Engineer. 06632_ U-05 Engineer destroyed. 06632_ Slug penetrates L0-B8H(A). 06632_ L0-B8H(A) destroyed. 06638_ Slug penetrates Wall. 06638_ Fission Core destroyed. 06639_ Slug penetrates Wall. 06668_ U-05 Engineer builds a Wall. 06677_ Penetrated by Slug. 06680_ Slug penetrates Wall. 06683_ Penetrated by Slug. 06683_ Slug penetrates Sealed Heavy Doors. 06683_ Penetrated by Slug. 06689_ 0W-F33(g): "Time for some payback!" 06691_ Slug penetrates Sealed Heavy Doors. 06691_ Penetrated by Slug. 06691_ Slug penetrates Sealed Heavy Doors. 06691_ Slug penetrates Y-64 Sentinel. 06691_ Y-64 Sentinel destroyed. 06691_ Acquired 51 Protomatter. Map ----- +----------------------------------------------------+ | | | | | | | | | | | | | | | | | | | | | | | | | | | | | | | | | | | | | | | | | | | | | ?????????????????????????????????????????????????? | | ?????#######??????????????????????????????????#### | | ?????# #???????????#####??????????????????# "" | | ?##### #??????????##ub##################### " | | ?# #??????????#g"hh " " | | ?# ### #??????????#!" #### " " | | ## #?# #??????????###T#??# ^ ^ | | + #?#######????????????###??# [ !^!^ | | ## #???????????????????????###+######## !%! *% | | ## #???????????????????????# !] #???# != !! | | ## #???????????????????????# = #???# !] | | ## #???????????????????????# ] #???# ! | | ## ##??????????????????????# #???# | | #= ######################## *#???# ### | | [* = [!%[[! ! =! !! /[ ] #???# #?# | | # ###############################???# #?#### | | #####??????????????????????###????????#######????? | | ?????????????????????????????????????????????????? | | ?????????????????????????????????????????????????? | | ?????????????????????????????????????????????????? | | ?????????????????????????????????????????????????? | | ?????????????????????????????????????????????????? | | ?????????????????????????????????????????????????? | | ?????????????????????????????????????????????????? | | ?????????????????????????????????????????????????? | | ?????????????????????????????????????????????????? | | ?????????????????????????????????????????????????? | | ?????????????????????????????????????????????????? | +----------------------------------------------------+ Best States ------------- Heat Dissipation 114 Energy Generation 66 Energy Capacity 915 Matter Stores 200 Matter Capacity 200 Sight Range 22 Robot Scan Range 18 Terrain Scan Range 14 Terrain Scan Density 85 Additional Mass Support 12 Armor Coverage 225 Resistance: KI 25 Resistance: TH 25 Resistance: EM 90 Resistance: I 25 Resistance: S 25 Core Shielding 30 Weapon Shielding 66 Phase Shifting 20 Evasion (%) 87 Targeting Accuracy 12 Launcher Accuracy 40 Target Analysis 6 Core Analysis 8 Armor Integrity Analysis 40 Recoil Reduction 2 Offensive Hacking 70 Defensive Hacking 56 Item Schematics ----------------- Force Field | -7/Zion | Archive Fusion Compressor | -7/Zion | Archive Phase Shifter | -7/Zion | Archive Adv. ECM Suite | -7/Zion | Archive Mak. System Shield | -7/Zion | Archive Recoil Nullifier | -7/Zion | Archive Field Propulsion Drive | -7/Zion | Archive Dynamic Insulation System | -7/Zion | Archive Imp. Trap Scanner | -7/Zion | Archive Mak. Light Armor Plating | -7/Zion | Archive Imp. Core Shielding | -7/Zion | Archive Imp. Carbon-fiber Leg | -7/Zion | Archive Thermic Laser | -7/Zion | Archive Plasma Cannon | -7/Zion | Archive Combat Drone Bay | -6/Data Miner | Free Lgt. Regenerative Plating | -6/Data Miner | Free Cld. Nuclear Pulse Thruster | -6/Data Miner | Free Imp. Matter Compressor | -6/Data Miner | Free Hvy. Proton Cannon | -6/Data Miner | Free Impulse Thruster | -6/Data Miner | Free Point Defense Array | -6/Data Miner | Free Dispersion Rifle | -6/Data Miner | Free Imp. Plasma Cutter | -6/Data Miner | Free Adv. Coolant Injector | -6/Data Miner | Free Antigrav Array | -6/Data Miner | Free Mic. Antimatter Reactor | -6/Data Miner | Free Enh. Armored Leg | -5/Factory | Z-intel Plasma Sword | -5/Factory | Z-intel Enh. Fission Core | -5/Factory | Z-intel Cld. Cesium-ion Thruster | -5/Factory | Z-intel Hvy. Gatling Laser | -5/Factory | Z-intel Ionic Axe | -5/Factory | Z-intel Impact Mace | -5/Factory | Z-intel Thunder Hammer | -5/Factory | Z-intel Lgt. Neutrino Core | -5/Factory | Z-intel Fusion Reactor | -5/Factory | Z-intel Robot Schematics ------------------ G-47 Trooper | -7/Zion | Archive L-41 Fighter | -7/Zion | Archive R-06 Scavenger | -7/Zion | Archive D-63 Destroyer | -6/Data Miner | Free X-72 Disruptor | -6/Data Miner | Free Y-54 Guardian | -6/Data Miner | Free R-10 Processor | -6/Data Miner | Free O-32 Director | -6/Data Miner | Free M-36 Artificer | -6/Data Miner | Free A-02 Transporter | -5/Factory | Z-intel B-60 Warrior | -5/Factory | Z-intel T-07 Excavator | -5/Factory | Z-intel H-66 Slayer | -5/Factory | Z-intel G-50 Soldier | -5/Factory | Z-intel X-67 Chaingunner | -5/Factory | Z-intel K-01 Serf | -5/Factory | Z-intel X-62 Marksman | -5/Factory | Z-intel Fabricated ------------ Nothing Alien Tech Used ----------------- None Achievements -------------- None Challenges ------------ None Polymind | -11 -10 -10 -10 -9 -8 -7 -7 -7 -7 -6 -6 -6 -6 -6 -5 -5 -4 -4 ---------- Run | Yrd Mat Min Exi Min Mat Fac Low Low Zio Pro Fac Low Low Dat Pro Fac Fac Ext Hosts 8 | . 1 . 1 . . . . . 1 . . . . . . 2 2 1 Combat Hostiles 1 | . . . . . . . . . . . . . . . . . 1 . Allies 3 | . . . 1 . . . . . 1 . . . . . . . . 1 Unique Host Classes 8 | . 1 . 1 . . . . . 1 . . . . . . 2 2 1 Average Host Suspicion 52 | . 40 . . 25 85 53 78 . 13 94 86 95 26 9 87 78 37 99 Unsuspicious Activity 836 | . 68 9 16 . . . . . 75 . . 30 360 20 . 11 247 . Returns to Shadow 1 | . . . . . . . . . . . . . 1 . . . . . Fuzzy Dispatches 4 | . . . . . . . . . . . . . . . . . 4 . Protomatter Created 1242 | . . . . . 79 29 75 . . 99 54 197 67 . . 65 . 577 Used 565 | . 5 . 33 . . . . . 150 . . . . . . 28 325 24 Decayed 193 | . . . . . . . . . . . 27 32 . . . 20 . 114 Highest Spend 320 | . 5 . 33 . . . . . 150 . . . . . . 23 320 24 Top 5 Hosts by Kills: EX-DEC (-10/Exiles: 19) A8 (-7/Zion: 18) Tracker (-4/Factory: 6) Game ------ Seed ProtonCargoReconstructor Manual? 0 Play Time 01:04:21 Cumulative 144.0 hours Start 2024.05.29 @ 10:31:22 End 2024.05.30 @ 15:25:58 Sessions 5 Manual Loads 0 Difficulty Rogue Special Mode Winter2022/Polymind Game No. 78 Rogue 78 Adventurer 0 Explorer 0 Win Type - Total 5 Types 2/0/1/1/0/0/0/1/0 Lore% 83 Gallery% 74 Achievement% 63 Wizard Run 0 Options --------- Layout 0 ASCII 0 Keyboard 1 Movement Numpad Keybinds 0 Fullscreen 1 Font 18/SmallcapsGlow Map View 76x50 Zoom Use 0% Tactical HUD 1 Map Filters NONE Filters NONE Steam 1 RUN: 3373e02b-d9d5-4053-83c2-447990d5512a